bitfinex/quotes_ETHUSD_20250629
["timestamp","ask_amount","ask_price","bid_price","bid_amount"]
[1751214501049,6.8458,2434.5,2434.2,0.792]
[1751214503088,13.38333094,2434.5,2434.2,0.792]
[1751214503885,6.8458,2434.5,2434.2,0.792]
[1751214504057,10.95343488,2434.5,2434.2,0.792]
[1751214504809,10.95349724,2434.5,2434.2,0.792]
[1751214504961,4.10781596,2434.4,2434.2,0.792]
[1751214505291,10.95350359,2434.5,2434.2,0.792]
[1751214505792,6.8458,2434.5,2434.2,0.792]
[1751214506597,4.10781919,2434.4,2434.2,0.792]
[1751214506796,0.2048,2434.3,2434.2,0.792]
[1751214508200,4.10812587,2434.2,2434.1,0.001]
[1751214508409,14.10812587,2434.2,2434.1,0.001]
[1751214508578,16.02078946,2434.2,2434.1,0.001]
[1751214510701,16.57078946,2434.2,2434.1,0.001]
[1751214511903,16.02078946,2434.2,2434.1,0.001]
[1751214512322,4.65913872,2433.6,2433.5,0.11140217]
[1751214512603,4.11032101,2432.9,2432.8,0.1908953]
[1751214512804,58.97359546,2432.9,2432.8,0.1908953]
[1751214513017,58.97359546,2432.9,2431.3,8.19493206]
[1751214513018,10.0,2431.4,2430.7,10.65341168]
[1751214513307,0.55,2431.0,2430.7,10.65341168]
[1751214513651,9.32527445,2431.2,2430.7,10.65341168]
[1751214513944,1.778,2431.3,2430.8,4.8849614]
[1751214514241,1.778,2431.5,2430.8,0.7712]
[1751214514415,8.37157445,2431.8,2431.1,4.11332435]
[1751214514610,10.0,2432.0,2430.8,0.4212]
[1751214514806,10.0,2432.0,2431.3,4.11289569]
[1751214515003,10.0,2432.0,2431.6,4.11240787]
[1751214515347,0.55,2431.7,2430.4,0.2180177]
[1751214515501,7.54727445,2431.2,2430.5,4.11437975]
[1751214515706,7.54727445,2431.2,2430.4,1.42265969]
[1751214515925,7.54727445,2431.2,2430.7,4.1138998]
[1751214516337,4.11297071,2431.4,2430.4,1.42265969]
[1751214516338,11.856,2431.4,2430.6,4.11407039]
[1751214516538,31.856,2431.6,2430.4,0.2180177]
[1751214516740,10.0,2431.5,2430.4,1.00558713]
[1751214516920,10.0,2431.5,2430.9,4.11365331]
[1751214517117,10.0,2431.5,2431.1,4.113355]
[1751214517439,0.7707,2432.3,2431.4,4.11272745]
[1751214517627,0.7707,2432.3,2430.7,7.54727445]
[1751214517628,10.0,2431.9,2430.8,0.7936]
[1751214517833,8.771,2432.0,2431.0,0.7936]
[1751214518141,5.9686241,2432.2,2431.0,0.7936]
[1751214518341,5.9686241,2432.2,2431.1,4.11336432]
[1751214518342,10.0,2432.1,2431.1,4.11336432]
[1751214518539,11.857,2432.2,2431.0,0.7936]
[1751214518842,10.0,2432.2,2431.7,4.11224273]
[1751214519052,1.857,2432.1,2431.8,4.11216704]
[1751214519250,1.857,2432.1,2431.7,4.1122866]
[1751214519744,1.857,2432.1,2431.6,4.11246883]
[1751214519921,11.857,2432.2,2431.1,0.7936]
[1751214520246,0.55,2432.3,2431.6,4.11237205]
[1751214520544,12.4927,2432.6,2431.9,4.11193284]
[1751214520749,4.11110182,2432.5,2431.4,4.11285679]
[1751214520917,12.4927,2432.6,2431.3,2.644]
[1751214521117,23.52058944,2432.6,2432.0,4.11181184]
[1751214521448,11.722,2432.6,2432.2,4.1113917]
[1751214521646,30.0,2432.7,2432.3,4.11132371]
[1751214522176,8.771,2432.9,2432.0,4.11180651]
[1751214522313,1.857,2432.9,2432.5,4.1109015]
[1751214522646,0.2048,2432.6,2432.5,4.1109015]
[1751214522845,0.2048,2432.6,2432.4,4.1111082]
[1751214523417,0.2048,2432.6,2432.5,4.11099691]
[1751214523614,0.2048,2432.6,2432.2,4.11137321]
[1751214523818,0.2048,2432.6,2432.3,4.11132235]
[1751214524050,0.2048,2432.6,2432.4,4.11115099]
[1751214524253,0.2048,2432.6,2432.3,4.11126128]
[1751214524440,0.2048,2432.6,2432.4,4.1111638]
[1751214524917,0.2048,2432.6,2432.3,4.11125626]
[1751214525467,0.2048,2432.6,2432.4,4.11110561]
[1751214525621,0.2048,2432.6,2432.3,4.11126388]
[1751214526131,0.2048,2432.6,2432.4,4.11112556]
[1751214526429,0.2048,2432.6,2432.3,4.1112502]
[1751214526649,0.2048,2432.6,2432.1,4.11153546]
[1751214526851,14.11071514,2432.7,2432.2,4.11142079]
[1751214527034,0.2048,2432.4,2432.2,4.11142079]
[1751214527234,0.2048,2432.4,2432.1,4.11159391]
[1751214528765,0.2048,2432.4,2432.2,4.11149056]
[1751214528954,0.2048,2432.4,2432.3,4.11133495]
[1751214529970,10.0,2432.9,2432.2,4.11150398]
[1751214530268,0.2048,2432.6,2432.3,0.8049]
[1751214530484,0.2048,2432.6,2432.5,4.11099691]
[1751214531343,10.0,2433.0,2432.5,4.11093223]
[1751214531679,4.1105997,2432.8,2432.3,0.8049]
[1751214531838,0.2048,2432.5,2432.3,4.11125403]
[1751214532035,0.2048,2432.5,2432.4,4.11116592]
[1751214532232,10.0,2432.9,2432.5,4.1109516]
[1751214532456,0.2048,2432.7,2432.5,4.1109516]
[1751214532886,0.002,2432.6,2432.5,4.1109516]
[1751214535287,0.002,2432.6,2432.5,4.9244516]
[1751214538990,0.002,2432.6,2432.5,6.72319335]
[1751214539172,0.002,2432.6,2432.5,6.92799335]
[1751214542491,0.002,2432.6,2432.5,13.80699335]
[1751214542866,0.002,2432.6,2432.5,12.0082516]
[1751214550095,0.002,2432.6,2432.5,13.8252516]
[1751214552298,0.002,2432.6,2432.5,5.1292516]
[1751214552496,0.002,2432.6,2432.5,13.8182516]
[1751214555018,0.002,2432.6,2432.5,24.3682516]
[1751214555237,0.002,2432.6,2432.5,27.21619335]
[1751214556520,0.002,2432.6,2432.5,38.12609863]
[1751214556809,0.002,2432.6,2432.5,47.98909863]
[1751214557615,0.002,2433.6,2433.5,4.93680758]
[1751214557820,0.002,2433.6,2433.5,13.61780758]
[1751214558031,0.002,2433.6,2433.5,13.82260758]
[1751214559329,0.002,2433.6,2433.5,15.61581273]
[1751214564630,0.002,2433.6,2433.5,37.07571801]
[1751214564843,0.002,2433.6,2433.5,28.39471801]
[1751214565026,0.002,2433.6,2433.5,26.15381273]
[1751214565617,0.002,2433.6,2433.5,16.93481273]
[1751214565806,0.002,2433.6,2433.5,25.60281273]
[1751214568117,0.002,2433.6,2433.5,16.93481273]
[1751214568304,0.002,2433.6,2433.5,25.59781273]
[1751214573249,0.002,2433.6,2433.5,25.58681273]
[1751214575473,0.002,2433.6,2433.5,16.93481273]
[1751214575777,0.002,2433.6,2433.5,25.58281273]
[1751214575987,0.002,2433.6,2433.5,25.58081273]
[1751214576186,0.002,2433.6,2433.5,16.93481273]
[1751214576396,0.002,2433.6,2433.5,25.54881273]
[1751214578693,0.002,2433.6,2433.5,7.70351273]
[1751214578897,0.002,2433.6,2433.5,12.71930758]
[1751214579193,0.002,2433.6,2433.5,12.72230758]
[1751214579361,0.002,2433.6,2433.5,12.27270758]
[1751214581706,0.002,2433.6,2433.4,4.10942566]
[1751214581911,0.002,2433.6,2433.2,0.7556]
[1751214581912,0.002,2433.6,2433.5,1.801]
[1751214582079,0.002,2433.6,2433.5,8.608]
[1751214582437,0.002,2433.6,2433.2,8.85973227]
[1751214582578,0.8146,2433.5,2433.3,6.809]
[1751214582778,0.8146,2433.5,2433.0,8.86006307]
[1751214582992,4.10955381,2433.4,2433.1,13.36]
[1751214583280,4.10955381,2433.4,2433.2,6.808]
[1751214584716,4.92399918,2433.5,2433.2,6.808]
[1751214585512,0.8146,2433.5,2433.2,6.808]
[1751214586214,4.92392307,2433.5,2433.2,6.808]
[1751214586907,4.10947958,2433.4,2433.2,6.808]
[1751214587110,4.92399885,2433.5,2433.2,6.808]
[1751214588734,5.12879885,2433.5,2433.2,6.808]
[1751214589011,4.10952095,2433.4,2433.2,6.808]
[1751214589513,5.12876949,2433.5,2433.2,6.808]
[1751214590815,4.10948048,2433.4,2433.2,6.808]
[1751214592317,4.10948048,2433.4,2433.1,1.801]
[1751214592513,4.10948048,2433.4,2433.2,6.794]
[1751214593228,5.12878453,2433.5,2433.2,6.794]
[1751214595440,4.10947907,2433.4,2433.2,6.794]
[1751214595941,5.1287949,2433.5,2433.2,6.794]
[1751214597037,1.0194,2433.5,2433.2,6.794]
[1751214598611,0.2048,2433.5,2433.2,6.794]
[1751214598811,0.2048,2433.5,2433.2,10.90380882]
[1751214599026,0.002,2433.6,2433.2,11.10860882]
[1751214599027,0.2068,2433.6,2433.2,11.10860882]
[1751214600014,0.2068,2433.6,2433.2,15.85860882]
[1751214600664,0.2068,2433.6,2433.2,11.7488]
[1751214600862,0.002,2433.6,2433.5,4.10930758]
[1751214601076,0.002,2433.6,2433.5,6.778]
[1751214601347,0.002,2433.6,2433.4,4.75]
[1751214601348,5.10960758,2433.5,2433.4,4.75]
[1751214601549,5.10960758,2433.5,2433.4,11.53]
[1751214602440,5.10960758,2433.5,2433.4,4.75]
[1751214604022,4.10947645,2433.4,2433.1,1.801]
[1751214604354,4.31466065,2433.2,2432.8,0.2048]
[1751214604525,4.31466065,2433.2,2432.9,8.581]
[1751214605024,0.2048,2433.2,2433.0,6.78]
[1751214606541,7.56233437,2433.6,2433.1,0.8581]
[1751214606542,0.7795,2433.6,2433.1,0.8581]
[1751214606725,0.2048,2433.5,2433.1,4.31468958]
[1751214607602,0.2048,2433.5,2433.2,4.10981292]
[1751214607870,0.2048,2433.5,2433.3,6.78]
[1751214608233,0.2048,2433.5,2433.3,10.88964167]
[1751214609167,0.2048,2433.5,2433.3,6.78]
[1751214609739,0.2048,2433.5,2433.3,10.88963056]
[1751214610064,0.2048,2433.5,2433.3,6.78]
[1751214610465,4.31420029,2433.5,2433.3,6.78]
[1751214610676,4.10947645,2433.4,2433.3,6.78]
[1751214611339,4.31420098,2433.5,2433.3,6.78]
[1751214612076,4.10947645,2433.4,2433.3,6.78]
[1751214612279,4.31419845,2433.5,2433.3,6.78]
[1751214612975,0.2048,2433.5,2433.3,6.78]
[1751214613742,0.2048,2433.5,2433.3,10.88963128]
[1751214613938,0.002,2433.6,2433.3,11.94745041]
[1751214614137,0.002,2433.6,2433.5,4.10930758]
[1751214614743,0.002,2433.6,2433.5,4.93930758]
[1751214615064,0.002,2433.6,2433.5,5.14410758]
[1751214615269,0.002,2433.6,2433.5,7.72324128]
[1751214618460,0.002,2433.6,2433.5,13.69610758]
[1751214620892,0.002,2433.6,2433.5,12.86610758]
[1751214621392,0.002,2433.6,2433.5,12.86210758]
[1751214621814,0.002,2433.6,2433.5,8.7568]
[1751214622094,0.002,2433.6,2433.5,6.771]
[1751214622261,4.11113872,2433.6,2433.5,6.771]
[1751214622709,4.86659913,2433.4,2432.8,4.90027471]
[1751214622906,8.31733437,2433.4,2432.9,1.9848]
[1751214623068,4.31445015,2433.3,2433.0,6.774]
[1751214623398,0.2048,2433.3,2433.1,6.774]
[1751214623770,4.31445918,2433.3,2433.1,6.774]
[1751214623996,0.2048,2433.3,2433.1,6.774]
[1751214624683,4.31447978,2433.3,2433.1,6.774]
[1751214624900,0.2048,2433.3,2433.1,6.774]
[1751214625903,4.31445535,2433.3,2433.1,6.774]
[1751214626799,4.31445535,2433.3,2432.9,1.9848]
[1751214626800,4.1098386,2433.2,2432.9,1.9848]
[1751214627265,4.1098386,2433.2,2433.0,6.768]
[1751214627462,4.31454628,2433.3,2433.0,6.768]
[1751214628090,0.2048,2433.3,2433.0,6.768]
[1751214628490,4.31447515,2433.3,2433.0,6.768]
[1751214628687,4.10987115,2433.2,2433.0,6.768]
[1751214628900,4.10987115,2433.2,2432.9,1.9848]
[1751214629074,4.10987115,2433.2,2433.0,6.766]
[1751214629406,4.31467115,2433.2,2433.1,6.765]
[1751214631578,4.10998691,2433.1,2432.9,1.78]
[1751214631768,4.10998691,2433.1,2433.0,6.762]
[1751214633714,4.10998691,2433.1,2432.9,1.78]
[1751214633888,4.10998691,2433.1,2433.0,6.762]
[1751214634080,4.10998691,2433.1,2433.0,6.763]
[1751214635008,0.2048,2433.2,2433.0,6.763]
[1751214635313,4.31461563,2433.2,2433.0,6.763]
[1751214635610,4.10998314,2433.1,2433.0,6.758]
[1751214636308,4.10998314,2433.1,2433.0,0.001]
[1751214636513,4.86198314,2433.1,2433.0,0.001]
[1751214636714,14.86198314,2433.1,2433.0,0.001]
[1751214638988,15.41198314,2433.1,2433.0,0.001]
[1751214641123,45.41198314,2433.1,2433.0,0.001]
[1751214641607,14.86198314,2433.1,2433.0,0.001]
[1751214643243,52.97231751,2433.1,2433.0,0.001]
[1751214643407,53.61590715,2433.1,2433.0,0.001]
[1751214646213,23.61590715,2433.1,2433.0,0.001]
[1751214646417,53.61590715,2433.1,2433.0,0.001]
[1751214653042,62.12490715,2433.1,2433.0,0.001]
[1751214653948,60.35790715,2433.1,2433.0,0.001]
[1751214654510,53.06590715,2433.1,2433.0,0.001]
[1751214654737,14.10998314,2433.1,2433.0,0.001]
[1751214655313,30.0,2433.4,2433.0,0.7898]
[1751214655534,0.2048,2433.1,2433.0,4.89993822]
[1751214655736,0.2048,2433.1,2433.0,5.38993204]
[1751214656443,0.2048,2433.1,2433.0,4.89993822]
[1751214658217,0.2048,2433.1,2433.0,0.7898]
[1751214658838,0.2048,2433.1,2433.0,4.89995207]
[1751214659922,0.2048,2433.1,2433.0,0.7898]
[1751214660942,0.2048,2433.1,2433.0,4.89995207]
[1751214661954,0.2048,2433.1,2433.0,5.8009793]
[1751214663533,0.2048,2433.1,2433.0,1.69082723]
[1751214663729,0.2048,2433.1,2433.0,0.90202723]
[1751214664046,0.2048,2433.1,2433.0,4.11115207]
[1751214666768,0.2048,2433.1,2433.0,0.001]
[1751214667122,0.2048,2433.1,2433.0,4.11115207]
[1751214667324,0.002,2433.5,2433.0,4.11115207]
[1751214667325,0.002,2433.5,2433.4,4.88467645]
[1751214667727,0.002,2433.5,2433.4,5.08947645]
[1751214668221,0.002,2433.5,2433.4,12.64981082]
[1751214668421,0.002,2433.5,2433.4,15.17445359]
[1751214668651,0.002,2434.2,2434.1,4.88349464]
[1751214668845,0.002,2434.2,2434.1,13.37249464]
[1751214669166,0.002,2434.2,2434.1,20.93282901]
[1751214669328,0.002,2434.2,2434.1,21.13762901]
[1751214669527,0.002,2434.2,2434.1,23.66223554]
[1751214670486,0.002,2434.5,2434.4,4.88298836]
[1751214670840,0.002,2434.5,2434.4,5.08778836]
[1751214672189,0.002,2434.5,2434.4,13.58378836]
[1751214672553,0.002,2434.5,2434.4,13.38198836]
[1751214672752,0.002,2434.5,2434.4,9.2742]
[1751214673151,0.002,2434.5,2434.3,9.861]
[1751214673355,0.2048,2434.4,2434.3,6.747]
[1751214673682,0.002,2434.5,2434.3,6.747]
[1751214673683,0.002,2434.5,2434.4,4.10778836]
[1751214674239,0.002,2434.5,2434.3,11.99102416]
[1751214674440,0.002,2434.5,2434.4,4.92208836]
[1751214675575,0.002,2434.5,2434.4,9.3133]
[1751214675773,0.002,2434.5,2434.4,13.42108836]
[1751214675978,0.002,2434.5,2434.4,15.28761127]
[1751214676146,0.002,2434.5,2434.4,11.17982291]
[1751214676346,0.002,2434.5,2434.4,15.28761127]
[1751214676573,0.002,2434.5,2434.4,11.17982291]
[1751214677746,0.002,2434.5,2434.4,15.28761127]
[1751214684895,0.002,2434.5,2434.4,15.28261127]
[1751214685982,0.002,2434.5,2434.4,15.83261127]
[1751214686763,0.002,2434.5,2434.4,25.83261127]
[1751214694409,0.002,2435.0,2434.4,25.83261127]
[1751214694410,0.002,2435.0,2434.5,5.45391963]
[1751214694600,0.002,2435.0,2434.5,30.20424858]
[1751214694798,0.002,2435.0,2434.5,30.40904858]
[1751214695902,0.002,2435.0,2434.5,19.52704387]
[1751214696105,0.002,2435.0,2434.5,28.02004387]
[1751214697115,0.002,2435.0,2434.5,32.77004387]
[1751214698632,0.002,2435.0,2434.5,24.27704387]
[1751214698834,0.002,2435.0,2434.5,32.77504387]
[1751214699135,0.002,2435.0,2434.5,24.27704387]
[1751214699433,0.002,2435.0,2434.5,32.77404387]
[1751214700938,0.002,2435.0,2434.5,43.65604858]
[1751214701638,0.002,2435.0,2434.5,35.15904858]
[1751214701836,0.002,2435.0,2434.5,43.65204858]
[1751214703939,0.002,2435.0,2434.5,35.15904858]
[1751214704137,0.002,2435.0,2434.5,43.65104858]
[1751214704433,0.002,2435.0,2434.5,43.64904858]
[1751214705139,0.002,2435.0,2434.5,35.15904858]
[1751214705348,0.002,2435.0,2434.5,43.64904858]
[1751214705547,0.002,2435.0,2434.5,38.89904858]
[1751214708967,0.002,2435.0,2434.5,28.01604387]
[1751214709331,0.002,2435.0,2434.8,14.65711352]
[1751214709529,0.002,2435.0,2434.9,11.477]
[1751214709778,0.002,2435.0,2434.9,11.6818]
[1751214709937,0.002,2435.0,2434.9,17.54674484]
[1751214710971,0.002,2435.0,2434.9,9.05974484]
[1751214711175,0.002,2435.0,2434.9,17.54574484]
[1751214711341,0.002,2435.0,2434.9,19.94615505]
[1751214720383,0.002,2435.0,2434.9,20.69845505]
[1751214723789,0.002,2435.0,2434.9,28.80064126]
[1751214726279,0.002,2435.0,2434.9,12.76245505]
[1751214726583,0.002,2435.0,2434.9,21.23145505]
[1751214727164,0.002,2435.0,2434.9,28.78364126]
[1751214730592,0.002,2435.0,2434.9,46.76364126]
[1751214734112,0.002,2435.5,2434.9,46.76364126]
[1751214734113,0.7673,2436.7,2435.9,4.10525883]
[1751214734262,0.7673,2436.7,2435.9,38.46905883]
[1751214734464,7.55218621,2437.0,2435.9,29.25325883]
[1751214734671,0.7673,2436.2,2435.9,27.16725883]
[1751214735967,0.7673,2436.6,2435.9,28.47005883]
[1751214736166,0.7673,2436.6,2435.9,42.48282303]
[1751214737184,0.002,2437.1,2435.9,42.48282303]
[1751214737185,0.7673,2436.8,2435.9,42.48582303]
[1751214737592,0.7673,2437.0,2435.9,42.48582303]
[1751214739417,0.7673,2437.0,2435.9,34.01882303]
[1751214739714,0.7673,2436.6,2435.9,42.48382303]
[1751214740606,0.7673,2436.6,2435.9,34.01882303]
[1751214740811,0.7673,2436.6,2435.9,32.71602303]
[1751214741114,0.8332,2436.2,2435.9,41.72902303]
[1751214741581,0.8332,2436.2,2435.9,33.26602303]
[1751214741783,0.8332,2436.2,2435.9,41.73002303]
[1751214742016,0.8332,2436.4,2435.9,41.73002303]
[1751214743618,0.8332,2436.4,2435.9,41.72702303]
[1751214743817,0.8332,2436.4,2435.9,33.26602303]
[1751214744014,0.8332,2436.4,2435.9,41.72702303]
[1751214744219,0.8332,2436.4,2435.9,41.93082303]
[1751214744719,0.8332,2436.4,2435.9,33.47082303]
[1751214744915,0.8332,2436.4,2435.9,41.93082303]
[1751214745128,0.8332,2436.4,2435.9,33.47082303]
[1751214745422,0.8332,2436.4,2435.9,41.92982303]
[1751214745718,0.7731,2436.0,2435.9,30.64905883]
[1751214745896,0.7731,2436.0,2435.9,37.36705883]
[1751214746095,0.7731,2436.0,2435.9,18.90805883]
[1751214746423,0.7731,2436.0,2435.9,18.5158]
[1751214746625,0.7731,2436.0,2435.9,11.7978]
[1751214746817,0.7731,2436.0,2435.9,18.5148]
[1751214747013,0.7731,2436.0,2435.9,11.7978]
[1751214747329,0.7731,2436.0,2435.9,18.312]
[1751214748492,0.7731,2436.0,2435.9,11.593]
[1751214748687,0.7731,2436.0,2435.9,18.312]
[1751214748906,0.7731,2436.0,2435.9,11.593]
[1751214749193,0.7731,2436.0,2435.9,18.315]
[1751214751116,0.7731,2436.0,2435.9,18.312]
[1751214753630,0.7731,2436.0,2435.9,18.31]
[1751214753805,0.7731,2436.0,2435.9,9.852]
[1751214754128,0.7731,2436.0,2435.9,16.568]
[1751214754734,0.7731,2436.0,2435.6,0.2048]
[1751214754939,4.10716131,2436.0,2435.7,8.457]
[1751214755101,0.8205,2435.9,2435.7,8.457]
[1751214756015,0.8205,2435.9,2435.7,1.741]
[1751214756016,0.801,2435.8,2435.7,1.741]
[1751214756206,0.801,2435.8,2435.7,8.456]
[1751214757029,0.801,2435.8,2435.5,0.2068]
[1751214757226,4.90642737,2435.8,2435.7,1.741]
[1751214757431,4.90642737,2435.8,2435.7,8.455]
[1751214757627,4.90642737,2435.8,2435.7,8.454]
[1751214758003,4.10542737,2435.8,2435.7,6.713]
[1751214758630,4.90642737,2435.8,2435.7,6.713]
[1751214759426,4.90642737,2435.8,2435.6,1.741]
[1751214759427,4.10559592,2435.7,2435.6,1.741]
[1751214759626,0.801,2435.7,2435.6,8.454]
[1751214763422,4.90659592,2435.7,2435.6,8.454]
[1751214763731,4.90659592,2435.7,2435.6,1.741]
[1751214763921,0.801,2435.7,2435.6,8.451]
[1751214764122,1.0058,2435.7,2435.6,8.451]
[1751214773929,1.0058,2435.7,2435.6,6.702]
[1751214774255,5.11247765,2435.7,2435.5,0.002]
[1751214774435,5.11247765,2435.7,2435.6,6.701]
[1751214774831,1.0068,2435.7,2435.6,6.701]
[1751214776556,5.11239592,2435.7,2435.6,6.701]
[1751214776772,1.0068,2435.7,2435.6,6.701]
[1751214778655,5.11239592,2435.7,2435.6,6.701]
[1751214780654,1.0068,2435.7,2435.6,6.701]
[1751214783251,0.2058,2435.7,2435.6,6.701]
[1751214783577,0.2058,2435.7,2435.6,10.80676449]
[1751214785086,0.2058,2435.7,2435.6,6.701]
[1751214785260,0.2058,2435.7,2435.6,10.80676449]
[1751214786270,0.2058,2435.7,2435.6,12.54986542]
[1751214786476,0.001,2435.7,2435.6,12.75466542]
[1751214787695,0.001,2435.7,2435.6,11.01156449]
[1751214787998,0.001,2435.7,2435.6,8.6518]
[1751214788366,0.001,2435.7,2435.6,0.2048]
[1751214788694,0.001,2435.7,2435.6,8.6518]
[1751214788897,0.001,2435.7,2435.6,4.31056449]
[1751214789196,0.001,2435.7,2435.6,12.75756449]
[1751214791762,0.001,2435.7,2435.6,14.91871372]
[1751214791997,0.001,2435.7,2435.6,15.69561372]
[1751214792194,0.001,2435.7,2435.6,20.44161372]
[1751214798586,0.001,2435.7,2435.6,20.43161372]
[1751214799078,0.001,2435.7,2435.6,19.65471372]
[1751214801677,0.001,2435.7,2435.6,17.49356449]
[1751214805208,0.001,2435.7,2435.6,18.30506449]
[1751214810617,0.001,2435.7,2435.6,18.30406449]
[1751214811527,0.001,2435.7,2435.6,10.79356449]
[1751214811693,0.001,2435.7,2435.6,17.49256449]
[1751214812446,0.001,2435.7,2435.6,13.3868]
[1751214812945,0.001,2435.7,2435.6,17.49256449]
[1751214815304,0.001,2435.7,2435.6,13.3868]
[1751214815906,0.001,2435.7,2435.6,0.2048]
[1751214816294,0.001,2435.7,2435.6,6.9038]
[1751214817990,0.001,2435.7,2435.6,0.2048]
[1751214818191,0.001,2435.7,2435.6,6.699]
[1751214818424,4.10660627,2435.7,2435.6,6.699]
[1751214819119,0.001,2435.7,2435.6,6.699]
[1751214822027,0.001,2435.7,2435.6,10.80476449]
[1751214822219,0.001,2435.7,2435.6,6.699]
[1751214824655,0.001,2435.7,2435.6,10.80476449]
[1751214826342,0.001,2435.7,2435.6,6.699]
[1751214826549,0.001,2435.7,2435.6,10.80476449]
[1751214835255,0.001,2435.7,2435.6,13.0445006]
[1751214836227,0.001,2435.7,2435.6,10.80476449]
[1751214836773,0.001,2435.7,2435.5,6.6898]
[1751214837067,0.001,2435.7,2435.6,10.80376449]
[1751214837637,0.001,2435.7,2435.6,4.10576449]
[1751214837867,0.001,2435.7,2435.6,10.80276449]
[1751214842378,4.10576449,2435.6,2435.5,0.002]
[1751214842584,15.08176449,2435.6,2435.5,0.002]
[1751214844479,15.83843403,2435.6,2435.5,0.002]
[1751214844665,15.63176449,2435.6,2435.5,0.002]
[1751214844977,15.94624635,2435.6,2435.5,0.002]
[1751214847278,45.94624635,2435.6,2435.5,0.002]
[1751214849057,54.38024635,2435.6,2435.5,0.002]
[1751214849389,61.93243256,2435.6,2435.5,0.002]
[1751214849752,53.49843256,2435.6,2435.5,0.002]
[1751214850084,61.93243256,2435.6,2435.5,0.002]
[1751214850379,53.49843256,2435.6,2435.5,0.002]
[1751214850582,15.08176449,2435.6,2435.5,0.002]
[1751214852095,10.976,2435.6,2435.5,0.002]
[1751214852302,0.2048,2435.6,2435.5,4.91943307]
[1751214852593,0.001,2435.7,2435.5,5.41137638]
[1751214854099,0.001,2435.7,2435.5,1.30544331]
[1751214854872,0.001,2435.7,2435.5,5.41135275]
[1751214856080,0.001,2435.7,2435.5,1.30544331]
[1751214857893,0.001,2435.7,2435.5,5.41137478]
[1751214858774,0.001,2435.7,2435.5,1.30544331]
[1751214861380,0.001,2435.7,2435.5,0.49394331]
[1751214862082,4.10576449,2435.6,2435.5,0.002]
[1751214872900,12.45966709,2435.7,2435.5,0.002]
[1751214873091,11.65886709,2435.7,2435.5,0.002]
[1751214874015,4.10576449,2435.6,2435.5,0.002]
[1751214878049,11.65878528,2435.7,2435.5,0.002]
[1751214878341,4.10576449,2435.6,2435.5,0.002]
[1751214878547,11.65884682,2435.7,2435.5,0.002]
[1751214878912,4.10576449,2435.6,2435.5,0.002]
[1751214879420,11.65886442,2435.7,2435.5,0.002]
[1751214883538,0.2058,2435.7,2435.5,0.002]
[1751214884848,0.2058,2435.7,2435.5,4.10792868]
[1751214885950,0.2058,2435.7,2435.5,0.002]
[1751214887255,0.2058,2435.7,2435.5,4.10788963]
[1751214887550,0.2058,2435.7,2435.6,4.10576449]
[1751214887918,0.2058,2435.7,2435.6,4.87076449]
[1751214888850,0.001,2435.7,2435.6,4.87076449]
[1751214889376,0.001,2435.7,2435.6,5.07556449]
[1751214891343,0.001,2435.7,2435.6,4.87076449]
[1751214891574,0.001,2435.7,2435.5,0.2068]
[1751214891771,7.55318621,2435.7,2435.5,0.002]
[1751214891965,7.75798621,2435.7,2435.5,0.002]
[1751214893475,0.2058,2435.7,2435.5,0.002]
[1751214893643,0.2058,2435.7,2435.5,4.1079197]
[1751214894380,0.2058,2435.7,2435.6,4.10576449]
[1751214894563,0.2058,2435.7,2435.5,0.002]
[1751214894943,4.31142815,2435.7,2435.5,0.002]
[1751214895478,4.10662815,2435.7,2435.5,0.002]
[1751214895647,0.2048,2435.6,2435.5,0.002]
[1751214898179,4.31056449,2435.6,2435.5,0.002]
[1751214898851,5.09226449,2435.6,2435.5,0.002]
[1751214903490,15.09226449,2435.6,2435.5,0.002]
[1751214903677,15.64226449,2435.6,2435.5,0.002]
[1751214904187,15.95446298,2435.6,2435.5,0.002]
[1751214904957,22.64546298,2435.6,2435.5,0.002]
[1751214907361,52.64546298,2435.6,2435.5,0.002]
[1751214910496,22.64546298,2435.6,2435.5,0.002]
[1751214910700,52.64546298,2435.6,2435.5,0.002]
[1751214913160,22.64546298,2435.6,2435.5,0.002]
[1751214913360,54.24546298,2435.6,2435.5,0.002]
[1751214915200,4.10725763,2434.8,2434.6,0.002]
[1751214915519,0.2048,2434.7,2434.6,0.002]
[1751214915868,4.31208221,2434.7,2434.6,0.002]
[1751214916182,11.86426842,2434.7,2434.6,0.002]
[1751214918068,22.67616842,2434.7,2434.6,0.002]
[1751214918898,29.36616842,2434.7,2434.6,0.002]
[1751214919670,24.44698621,2434.7,2434.6,0.002]
[1751214920407,10.0,2434.7,2434.6,0.829]
[1751214921206,4.1066255,2435.1,2434.6,4.93634699]
[1751214921207,14.10668751,2435.1,2434.6,4.93634699]
[1751214921404,10.0,2435.1,2434.7,4.10718295]
[1751214922309,10.0,2435.2,2434.8,4.10702392]
[1751214922510,6.69,2435.2,2434.9,0.827]
[1751214922710,16.69,2435.2,2434.9,0.827]
[1751214923009,10.0,2435.1,2434.9,0.827]
[1751214923313,10.0,2435.1,2434.9,4.93394304]
[1751214924010,10.0,2435.1,2434.9,0.827]
[1751214924972,14.1066535,2435.1,2434.9,0.827]
[1751214925702,14.1066535,2435.1,2434.7,0.795]
[1751214926004,4.10680446,2435.0,2434.7,0.795]